bitfinex/quotes_BTCUSD_20241216
["timestamp","ask_amount","ask_price","bid_price","bid_amount"]
[1734364906235,0.12671233,106040.0,106030.0,0.00055704]
[1734364906887,0.12671233,106040.0,106030.0,0.12654999]
[1734364907105,0.12671233,106040.0,106030.0,0.00055704]
[1734364907321,0.12621233,106060.0,106030.0,1.85067304]
[1734364907538,0.04631233,106050.0,106040.0,0.2760077]
[1734364907773,0.2467907,106050.0,106040.0,0.2100107]
[1734364907981,0.2467907,106050.0,106040.0,0.084003]
[1734364908216,0.098,106040.0,106030.0,0.21074054]
[1734364908427,0.19346961,106040.0,106030.0,0.21074054]
[1734364908637,0.19346961,106040.0,106030.0,0.21071974]
[1734364909950,0.19346961,106040.0,106030.0,0.08471204]
[1734364910171,0.24206961,106040.0,106030.0,0.08471204]
[1734364910393,0.2408907,106040.0,106030.0,0.08471204]
[1734364910603,0.2908907,106040.0,106030.0,0.08471204]
[1734364910870,0.2908907,106040.0,106030.0,0.00072984]
[1734364911732,0.3408907,106040.0,106030.0,0.00072984]
[1734364914768,0.34031581,106040.0,106030.0,0.00072984]
[1734364915212,0.34031581,106040.0,106030.0,0.0846629]
[1734364915437,0.34031581,106040.0,106030.0,0.29449556]
[1734364915659,0.24031581,106040.0,106030.0,0.21050735]
[1734364915869,0.24031581,106040.0,106030.0,0.37838036]
[1734364916760,0.27819878,106040.0,106030.0,0.37827436]
[1734364917187,0.29031581,106040.0,106030.0,0.50415007]
[1734364917431,0.21731581,106040.0,106030.0,0.19960604]
[1734364917646,0.21731581,106040.0,106030.0,0.11571553]
[1734364917863,0.21731581,106040.0,106030.0,0.20983266]
[1734364918076,0.12073744,106040.0,106030.0,0.2252351]
[1734364918279,0.04631233,106040.0,106030.0,1.7513111]
[1734364918488,0.04631233,106040.0,106030.0,0.72836844]
[1734364918760,0.04631233,106040.0,106030.0,0.36003744]
[1734364919001,0.12671233,106050.0,106030.0,0.36003744]
[1734364919202,0.04631233,106050.0,106040.0,0.42137232]
[1734364919437,0.04631233,106050.0,106040.0,0.30674471]
[1734364919647,0.04749103,106070.0,106050.0,0.15]
[1734364919864,0.14178173,106070.0,106050.0,0.15]
[1734364920067,0.14178173,106070.0,106060.0,0.01530244]
[1734364920930,0.04631233,106070.0,106060.0,0.01530244]
[1734364921136,0.1417815,106070.0,106060.0,0.01530244]
[1734364921769,0.04631233,106070.0,106060.0,0.64945532]
[1734364921977,0.12679873,106080.0,106060.0,0.20527713]
[1734364922182,0.04631233,106070.0,106060.0,0.16668732]
[1734364922386,0.04631233,106070.0,106060.0,0.16530244]
[1734364923210,0.04631233,106070.0,106060.0,0.01530244]
[1734364923631,0.11846915,106070.0,106060.0,0.01530244]
[1734364923840,0.04631233,106040.0,106030.0,0.03885934]
[1734364924059,0.11846961,106040.0,106030.0,0.03885934]
[1734364924274,0.11846961,106040.0,106030.0,0.0001728]
[1734364924699,0.21836961,106040.0,106030.0,0.0001728]
[1734364924915,0.1671907,106040.0,106030.0,0.0001728]
[1734364925124,0.16836978,106040.0,106030.0,0.0001728]
[1734364926203,0.16836978,106040.0,106030.0,0.16803798]
[1734364926405,0.1172907,106040.0,106030.0,0.126128]
[1734364926625,0.11846965,106040.0,106030.0,0.126128]
[1734364926828,0.11846965,106040.0,106030.0,0.29399318]
[1734364928106,0.11846965,106040.0,106030.0,0.29398219]
[1734364928313,0.11846965,106040.0,106030.0,0.3779637]
[1734364928524,0.11846965,106040.0,106030.0,0.50391784]
[1734364928745,0.11846965,106040.0,106030.0,0.12612694]
[1734364929383,0.11846965,106040.0,106030.0,0.0001728]
[1734364929594,0.11846965,106040.0,106030.0,0.3779637]
[1734364929800,0.11846965,106040.0,106030.0,0.12619595]
[1734364930248,0.11846965,106040.0,106030.0,0.12615444]
[1734364931109,0.1172907,106040.0,106030.0,0.12615444]
[1734364931584,0.11846969,106040.0,106030.0,0.29401962]
[1734364931790,0.16478202,106040.0,106030.0,0.50574574]
[1734364932002,0.42258202,106040.0,106030.0,0.50574574]
[1734364932229,0.3750907,106040.0,106030.0,0.21009852]
[1734364932435,0.3750907,106040.0,106030.0,0.50409652]
[1734364932885,0.3750907,106040.0,106030.0,0.50401989]
[1734364933104,0.3750907,106040.0,106030.0,0.29409417]
[1734364933533,0.4250907,106040.0,106030.0,0.1261391]
[1734364934002,0.4250907,106040.0,106030.0,0.12619497]
[1734364934452,0.4250907,106040.0,106030.0,0.12620493]
[1734364935065,0.4750907,106040.0,106030.0,0.12620493]
[1734364935491,0.4750907,106040.0,106030.0,0.0001728]
[1734364935936,0.4250907,106040.0,106030.0,0.0001728]
[1734364936142,0.3750907,106040.0,106030.0,0.12620493]
[1734364936372,0.2578,106040.0,106030.0,0.2959604]
[1734364936601,0.2578,106040.0,106030.0,0.83573269]
[1734364936825,0.23279122,106040.0,106030.0,0.709478]
[1734364937070,0.2293058,106040.0,106030.0,0.74736567]
[1734364937291,0.2263058,106040.0,106030.0,0.54343957]
[1734364938186,0.14923018,106040.0,106030.0,0.79540276]
[1734364938415,0.02734018,106040.0,106030.0,0.86972831]
[1734364938630,0.10855631,106090.0,106040.0,0.16828767]
[1734364938837,0.10737796,106090.0,106060.0,0.29394221]
[1734364939046,0.10737796,106090.0,106070.0,0.236759]
[1734364939305,0.04631233,106090.0,106070.0,0.236759]
[1734364940348,0.04686858,106090.0,106060.0,0.59819164]
[1734364940559,0.04686858,106090.0,106070.0,0.462659]
[1734364940986,0.04686858,106090.0,106070.0,0.431324]
[1734364941200,0.04686858,106090.0,106070.0,0.585889]
[1734364941413,0.04686858,106090.0,106060.0,0.38823291]
[1734364941619,0.11784695,106090.0,106080.0,0.02752719]
[1734364941850,0.11902531,106090.0,106080.0,0.02752719]
[1734364942916,0.04686858,106090.0,106080.0,0.0647855]
[1734364943331,0.04686858,106090.0,106080.0,0.02752719]
[1734364943539,0.00055625,106090.0,106080.0,0.02752719]
[1734364943750,0.00055625,106090.0,106080.0,0.78094419]
[1734364943963,0.00055625,106090.0,106080.0,0.84071419]
[1734364944170,0.00064265,106090.0,106080.0,0.84071419]
[1734364944412,0.00064265,106090.0,106080.0,0.50216519]
[1734364944595,0.00064265,106090.0,106080.0,0.47574219]
[1734364944808,0.00064265,106090.0,106080.0,0.17752719]
[1734364945224,0.00064265,106090.0,106080.0,0.02752719]
[1734364946126,0.00064265,106090.0,106070.0,0.18823588]
[1734364946338,0.00064265,106090.0,106080.0,0.00097154]
[1734364947217,0.04195498,106100.0,106080.0,0.00097154]
[1734364947438,0.04212181,106100.0,106080.0,0.00097154]
[1734364947858,0.00016683,106100.0,106090.0,1.542373]
[1734364948072,0.03356451,106110.0,106090.0,0.15147938]
[1734364948281,0.03356451,106110.0,106100.0,0.00073969]
[1734364948528,0.03356451,106100.0,106090.0,0.15090652]
[1734364948762,0.03356451,106110.0,106090.0,0.15164621]
[1734364948966,0.03356451,106100.0,106090.0,0.00164621]
[1734364949841,0.1984907,106100.0,106090.0,0.00016683]
[1734364950065,0.0812,106100.0,106090.0,0.00016683]
[1734364950269,0.1984907,106100.0,106090.0,0.00016683]
[1734364950681,0.2469907,106100.0,106090.0,0.00016683]
[1734364952206,0.3469907,106100.0,106090.0,0.00016683]
[1734364952623,0.2469907,106100.0,106090.0,0.00016683]
[1734364955094,0.11176451,106050.0,106030.0,0.0067874]
[1734364955311,0.11176451,106050.0,106030.0,0.0001728]
[1734364955521,0.1172907,106040.0,106030.0,0.0001728]
[1734364955730,0.11846947,106040.0,106030.0,0.0001728]
[1734364955939,0.11846947,106040.0,106030.0,0.03924542]
[1734364956154,0.11846947,106040.0,106030.0,0.0001728]
[1734364956366,0.11846947,106040.0,106030.0,0.00072905]
[1734364956783,0.1172907,106040.0,106030.0,0.15072905]
[1734364956985,0.1172907,106040.0,106030.0,0.00072905]
[1734364959286,0.1172907,106040.0,106030.0,0.00407362]
[1734364959287,0.50245766,106040.0,106030.0,0.00407362]
[1734364959493,0.5616907,106040.0,106030.0,0.00072905]
[1734364959710,0.6079907,106040.0,106030.0,0.00072905]
[1734364961499,0.4849907,106040.0,106030.0,0.00072905]
[1734364961722,0.4386907,106040.0,106030.0,0.00072905]
[1734364961940,0.1731907,106040.0,106030.0,0.00072905]
[1734364962142,0.17436968,106040.0,106030.0,0.00072905]
[1734364962769,0.19736968,106040.0,106030.0,0.00072905]
[1734364963389,0.19736969,106040.0,106030.0,0.00072905]
[1734364964028,0.1961907,106040.0,106030.0,0.00072905]
[1734364964233,0.19736968,106040.0,106030.0,0.00072905]
[1734364964449,0.1172907,106040.0,106030.0,0.00072905]
[1734364966406,0.1172907,106040.0,106030.0,0.03819852]
[1734364966613,0.1172907,106040.0,106030.0,0.00072905]
[1734364969052,0.1962907,106040.0,106030.0,0.00072905]
[1734364969517,0.19746973,106040.0,106030.0,0.00072905]
[1734364969716,0.19728111,106040.0,106030.0,0.00072905]
[1734364970190,0.56278111,106040.0,106030.0,0.00072905]
[1734364970410,0.60870208,106040.0,106030.0,0.00072905]
[1734364970620,0.50870208,106040.0,106030.0,0.00072905]
[1734364971860,0.55870208,106040.0,106030.0,0.00072905]
[1734364973722,0.29320208,106040.0,106030.0,0.00072905]
[1734364974786,0.24320208,106040.0,106030.0,0.00072905]
[1734364975222,0.29320208,106040.0,106030.0,0.00072905]
[1734364975645,0.24320208,106040.0,106030.0,0.00072905]
[1734364976112,0.29320208,106040.0,106030.0,0.00072905]
[1734364977464,0.24320208,106040.0,106030.0,0.00072905]
[1734364977883,0.19610208,106040.0,106030.0,0.00072905]
[1734364978093,0.03356451,106030.0,106000.0,0.15]
[1734364978313,0.03474351,106030.0,105990.0,0.047]
[1734364978515,0.03474351,106030.0,106000.0,1.218205]
[1734364978933,0.03474351,106030.0,105990.0,0.1412907]
[1734364979142,0.03474351,106030.0,106000.0,0.634799]
[1734364979347,0.03474351,106030.0,105990.0,0.1412907]
[1734364979556,0.03356451,106030.0,106000.0,0.9913]
[1734364979760,0.03356451,106030.0,106010.0,0.809229]
[1734364979970,0.03356451,106030.0,105990.0,0.1412907]
[1734364980223,0.03356451,106030.0,106000.0,1.4034617]
[1734364980402,0.00055625,106040.0,106010.0,2.834357]
[1734364980615,0.00055625,106040.0,106020.0,1.4076047]
[1734364980818,0.00055625,106040.0,106030.0,1.940228]
[1734364981024,0.00055625,106040.0,106030.0,1.9320077]
[1734364981441,0.00055625,106040.0,106030.0,1.62953619]
[1734364981647,0.00055625,106040.0,106030.0,1.63025843]
[1734364981855,0.03356451,106080.0,106030.0,1.69445843]
[1734364982069,0.03356451,106080.0,106040.0,2.71052794]
[1734364982279,0.03356451,106080.0,106050.0,1.408574]
[1734364982485,0.03356451,106080.0,106070.0,0.15]
[1734364982899,0.03356451,106080.0,106070.0,0.15072224]
[1734364983111,0.03356451,106050.0,106030.0,0.16796668]
[1734364983323,0.03356451,106040.0,106020.0,0.2988441]
[1734364983527,0.03356451,106050.0,106040.0,0.00072224]
[1734364984181,0.0011788,106060.0,106040.0,0.00072224]
[1734364984182,0.03356451,106060.0,106040.0,0.00072224]
[1734364985243,0.03356451,106060.0,106020.0,0.39296881]
[1734364985504,0.03356451,106060.0,106030.0,0.0942907]
[1734364985747,0.03356451,106060.0,106030.0,0.36112282]
[1734364985975,0.03356451,106050.0,106040.0,0.00036112]
[1734364986187,0.03474328,106050.0,106030.0,0.15]
[1734364986400,0.03356451,106050.0,106040.0,0.16027612]
[1734364986834,0.03356451,106050.0,106020.0,0.08871975]
[1734364987041,0.03356451,106050.0,106020.0,0.18301045]
[1734364987667,0.0347433,106040.0,106020.0,0.03921975]
[1734364987882,0.03474337,106040.0,106030.0,0.02710171]
[1734364988110,0.0942907,106040.0,106030.0,0.02710171]
[1734364988332,0.09546962,106040.0,106030.0,0.02710171]
[1734364988548,0.11846962,106040.0,106030.0,0.02710171]
[1734364988755,0.1028,106030.0,106020.0,0.00055625]
[1734364988963,0.1970907,106030.0,106020.0,0.00055625]
[1734364992012,0.2467907,106030.0,106020.0,0.00055625]
[1734364993762,0.3467907,106030.0,106020.0,0.00055625]
[1734364994186,0.2967907,106030.0,106020.0,0.00055625]
[1734365002002,0.3467907,106030.0,106020.0,0.00055625]
[1734365002622,0.6122907,106030.0,106020.0,0.00055625]
[1734365003451,0.6122907,106030.0,106020.0,0.00064265]
[1734365003661,0.5624635,106030.0,106020.0,0.00064265]
[1734365003860,0.5124635,106030.0,106020.0,0.00064265]
[1734365004081,0.4627635,106030.0,106020.0,0.00064265]
[1734365004219,0.4397635,106030.0,106020.0,0.00064265]
[1734365005506,0.4627635,106030.0,106020.0,0.00064265]
[1734365006687,0.4397635,106030.0,106020.0,0.00064265]
[1734365006857,0.4627635,106030.0,106020.0,0.00064265]
[1734365007212,0.1972635,106030.0,106020.0,0.00064265]
[1734365007415,0.19844271,106030.0,106020.0,0.00064265]
[1734365011223,0.34714271,106030.0,106020.0,0.00064265]
[1734365011455,0.3459635,106030.0,106020.0,0.00064265]
[1734365013319,0.6114635,106030.0,106020.0,0.00064265]
[1734365013860,0.1,106010.0,106000.0,8.64e-05]
[1734365014087,0.24377028,106010.0,106000.0,0.00025344]
[1734365014299,0.2425907,106010.0,106000.0,0.00025344]
[1734365015439,0.2019,105990.0,105980.0,0.0001726]
[1734365015661,0.2019,105990.0,105980.0,0.00033969]
[1734365015662,0.3448907,105990.0,105980.0,0.00033969]
[1734365017528,0.2948907,105990.0,105980.0,0.00033969]
[1734365017733,0.2448907,105990.0,105980.0,0.00033969]
[1734365018359,0.27212774,105990.0,105980.0,0.00033969]
[1734365018988,0.14452774,105990.0,105970.0,0.0001726]
[1734365019199,0.50897067,105980.0,105970.0,0.0001726]
[1734365019416,0.5077907,105980.0,105970.0,0.0001726]
[1734365020103,0.5026842,105980.0,105970.0,0.0001726]
[1734365021017,0.2871842,105980.0,105970.0,0.0001726]
[1734365021242,0.3371842,105980.0,105970.0,0.0001726]
[1734365021885,0.1942907,105980.0,105970.0,0.0001726]
[1734365022791,0.1442907,105980.0,105970.0,0.0001726]
[1734365023211,0.0942907,105980.0,105970.0,0.0001726]
[1734365024680,0.08394469,105980.0,105970.0,0.0001726]
[1734365024891,0.20200436,105980.0,105970.0,0.0001726]
[1734365026559,0.20200436,105980.0,105970.0,0.02738245]
[1734365026773,0.20200436,105980.0,105970.0,0.0001726]
[1734365028470,0.20318438,105980.0,105970.0,0.0001726]
[1734365028679,0.13565569,105980.0,105970.0,0.0001726]
[1734365030238,0.13187841,105980.0,105970.0,0.0001726]
[1734365030452,0.1276,105970.0,105960.0,9.013e-05]
[1734365030660,0.32881535,105970.0,105960.0,0.02743094]
[1734365030893,0.48265147,105970.0,105960.0,9.013e-05]
[1734365031746,0.35505147,105970.0,105950.0,0.01277499]
[1734365031954,0.33025994,105960.0,105950.0,0.01277499]
[1734365032159,0.3465263,105960.0,105950.0,0.01277499]
[1734365032359,0.32907962,105960.0,105950.0,0.01277499]
[1734365033865,0.32907962,105960.0,105950.0,0.00999239]
[1734365034306,0.4549666,105960.0,105950.0,0.00999239]
[1734365034930,0.4549666,105960.0,105950.0,0.03748577]
[1734365035351,0.4549666,105960.0,105950.0,0.00999239]
[1734365035573,0.34395703,105960.0,105950.0,0.00999239]
[1734365035786,0.12787705,105960.0,105950.0,0.00999239]
[1734365036011,0.12905716,105960.0,105950.0,0.00999239]
[1734365036446,0.0885981,105960.0,105950.0,0.00999239]
[1734365037102,0.0885981,105960.0,105950.0,0.03794535]
[1734365037797,0.1115981,105960.0,105950.0,0.03794535]
[1734365038699,0.1576981,105960.0,105950.0,0.03794535]
[1734365038909,0.18563372,105960.0,105950.0,0.03794535]
[1734365039540,0.26083372,105960.0,105950.0,0.03794535]
[1734365039747,0.25965361,105960.0,105950.0,0.03794535]
[1734365040383,0.44399986,105980.0,105950.0,0.03794535]
[1734365040589,0.24546676,105980.0,105950.0,0.03794535]
[1734365040796,0.00117998,105970.0,105950.0,0.03794535]
[1734365040998,0.00135278,105980.0,105950.0,0.03794535]
[1734365041416,0.00117992,105980.0,105960.0,0.2746]
[1734365041654,0.01447177,106010.0,105960.0,0.2746]
[1734365041889,0.00071084,106010.0,105960.0,0.2746]
[1734365042167,0.00071084,106010.0,105960.0,0.27476678]
[1734365042412,0.04711013,106030.0,105970.0,0.3246]
[1734365042660,0.04610001,106030.0,105980.0,0.32929213]
[1734365042894,0.25,106070.0,105990.0,0.42606046]
[1734365043117,0.03623296,106060.0,105990.0,0.37606046]
[1734365043342,0.11483296,106060.0,105990.0,0.42606046]
[1734365043554,0.0942907,106020.0,105990.0,0.32606046]
[1734365043970,0.0942907,106000.0,105990.0,0.047]
[1734365044196,0.0942907,106000.0,105980.0,0.19759213]
[1734365044410,0.0942907,106000.0,105990.0,0.00277301]
[1734365046465,0.04729749,106000.0,105990.0,0.00277301]
[1734365046691,0.0276507,106000.0,105990.0,0.00277301]
[1734365048504,0.0276507,106000.0,105980.0,0.17715929]
[1734365048725,0.05,105990.0,105960.0,0.04762008]
[1734365048902,0.05,105960.0,105920.0,0.04793872]
[1734365049112,0.14445775,105990.0,105970.0,0.04766758]
[1734365049515,0.14445775,105990.0,105940.0,0.04787687]
[1734365049671,0.16390352,105990.0,105960.0,0.00981959]
[1734365049872,0.14445775,105990.0,105960.0,0.00981959]
[1734365050071,0.14445775,105990.0,105970.0,0.04766758]
[1734365050538,0.09445775,105990.0,105970.0,0.04766758]
[1734365051356,0.09445775,105990.0,105960.0,0.05781193]
[1734365051575,0.08508776,105990.0,105960.0,0.05781193]
[1734365051783,0.08508776,105990.0,105970.0,0.15]
[1734365051984,0.03945,105990.0,105970.0,0.15]
[1734365053270,0.05566,105990.0,105970.0,0.15]
[1734365055489,0.05566,105990.0,105970.0,0.18050768]
[1734365057841,0.02228,105990.0,105970.0,0.18050768]
[1734365061689,0.00607,105990.0,105980.0,0.0028934]
[1734365061893,0.13247,105990.0,105980.0,0.0028934]
[1734365062097,0.34180153,105990.0,105980.0,0.0028934]
[1734365063159,0.36480153,105990.0,105980.0,0.0028934]
[1734365064044,0.36497433,105990.0,105980.0,0.0028934]
[1734365064254,0.34197433,105990.0,105980.0,0.0028934]
[1734365064693,0.16637541,105990.0,105980.0,0.0028934]
[1734365064902,0.21637541,105990.0,105980.0,0.0028934]
[1734365065341,0.23937541,105990.0,105980.0,0.0028934]
[1734365065792,0.21637541,105990.0,105980.0,0.0028934]
[1734365066682,0.23258541,105990.0,105980.0,0.0028934]
[1734365066904,0.1326428,105990.0,105980.0,0.0028934]
[1734365067978,0.27213937,105990.0,105980.0,0.0028934]
[1734365068185,0.1326428,105990.0,105980.0,0.0028934]
[1734365068428,0.21666621,105990.0,105980.0,0.0028934]
[1734365068849,0.23966621,105990.0,105980.0,0.0028934]
[1734365069287,0.36570133,105990.0,105980.0,0.0028934]
[1734365070572,0.36570133,105990.0,105970.0,8.64e-05]
[1734365070789,0.444902,105990.0,105980.0,0.35462802]
[1734365071007,0.36570133,105990.0,105980.0,0.35462802]
[1734365071216,0.3937968,105990.0,105980.0,0.35462802]
[1734365073078,0.36570133,105990.0,105980.0,0.35462802]
[1734365075012,0.35452203,105990.0,105980.0,0.35462802]
[1734365075447,0.1444635,105990.0,105980.0,0.35462802]
[1734365076077,0.01621,106000.0,105980.0,0.35462802]
[1734365076286,0.28785454,106020.0,105990.0,0.35462802]
[1734365076509,0.02815717,106020.0,106010.0,0.20462802]
[1734365076714,0.0942907,106020.0,106010.0,0.35462802]
[1734365076935,0.0742907,106020.0,106010.0,0.35462802]
[1734365077143,0.07044074,106020.0,106010.0,0.35462802]
[1734365078544,0.06569551,106020.0,106010.0,0.35462802]
[1734365078943,0.01910759,106020.0,106010.0,0.35462802]
[1734365079364,0.01758702,106030.0,106020.0,0.15]
[1734365079616,0.0792726,106040.0,106020.0,0.35462802]
[1734365079818,0.1022726,106040.0,106030.0,0.25231401]
[1734365080696,0.10282999,106040.0,106030.0,0.25231401]
[1734365081849,0.02372999,106040.0,106030.0,0.35462802]
[1734365082476,0.00072999,106040.0,106030.0,0.35462802]
[1734365084619,0.01754604,106040.0,106030.0,0.35462802]
[1734365084824,0.08313319,106050.0,106040.0,0.15]
[1734365085030,0.1692907,106050.0,106040.0,0.25231401]
[1734365085450,0.29557439,106050.0,106040.0,0.25231401]
[1734365086089,0.29557439,106050.0,106040.0,0.35462802]
[1734365086090,0.31857439,106050.0,106040.0,0.35462802]
[1734365086305,0.40277844,106050.0,106040.0,0.35462802]
[1734365087195,0.5711522,106050.0,106040.0,0.35462802]
[1734365087618,0.40277844,106050.0,106040.0,0.35462802]
[1734365088437,0.5711522,106050.0,106040.0,0.35462802]
[1734365088634,0.40277844,106050.0,106040.0,0.35462802]
[1734365088846,0.5711522,106050.0,106040.0,0.35462802]
[1734365089857,0.4961522,106050.0,106040.0,0.35462802]
[1734365090067,0.41194815,106050.0,106040.0,0.35462802]
[1734365090270,0.57622294,106050.0,106040.0,0.35462802]
[1734365090481,0.70246822,106050.0,106040.0,0.35462802]
[1734365090654,0.91283989,106050.0,106040.0,0.35462802]
[1734365090895,0.78657984,106050.0,106040.0,0.38553188]
[1734365091517,0.57615977,106050.0,106040.0,0.38553188]
[1734365092757,0.40781673,106050.0,106040.0,0.38553188]
[1734365093804,0.44791033,106050.0,106040.0,0.03090386]
[1734365094033,0.1052,106040.0,106020.0,0.10231401]
[1734365094239,0.54024402,106030.0,106020.0,0.10231401]
[1734365094452,0.4140926,106030.0,106020.0,0.10231401]
[1734365094659,0.2458907,106030.0,106020.0,0.10231401]
[1734365094871,0.54824579,106030.0,106020.0,0.20462802]
[1734365095488,0.54800782,106030.0,106020.0,0.20462802]
[1734365095893,0.54800782,106030.0,106020.0,0.35462802]
[1734365096505,0.54800782,106030.0,106020.0,0.3846559]
[1734365096711,0.49816729,106030.0,106020.0,0.3846559]
[1734365098095,0.49816729,106030.0,106020.0,0.3847422]
[1734365100609,0.45601636,106030.0,106020.0,0.3847422]
[1734365101445,0.40961636,106030.0,106020.0,0.3847422]
[1734365103289,0.6787178,106030.0,106020.0,0.3847422]
[1734365103492,0.14953653,106030.0,106020.0,0.3847422]
[1734365103777,0.01956173,106030.0,106020.0,0.3847422]
[1734365104337,0.07937647,106040.0,106030.0,0.15]
[1734365104559,0.0942907,106040.0,106030.0,0.35462802]
[1734365104972,0.0565807,106040.0,106030.0,0.35462802]
[1734365105372,0.0188707,106040.0,106030.0,0.35462802]
[1734365106284,0.12621508,106060.0,106050.0,0.10231401]
[1734365106483,0.20751508,106060.0,106050.0,0.25231401]
[1734365107114,0.20751508,106060.0,106050.0,0.35462802]
[1734365107530,0.23556604,106060.0,106050.0,0.35462802]
[1734365107953,0.23556604,106060.0,106050.0,0.38037349]
[1734365108166,0.15426604,106060.0,106050.0,0.38037349]
[1734365108373,0.02805096,106060.0,106050.0,0.38037349]
[1734365109667,0.09321729,106060.0,106050.0,0.38037349]
[1734365109869,0.02450125,106060.0,106050.0,0.38037349]
[1734365110309,0.02118402,106060.0,106050.0,0.38037349]
[1734365110521,0.11547472,106060.0,106050.0,0.38037349]
[1734365110737,0.28359284,106060.0,106050.0,0.38037349]
[1734365112017,0.26240882,106060.0,106050.0,0.38037349]
[1734365112231,0.09139791,106060.0,106050.0,0.38037349]
[1734365112858,0.09139791,106060.0,106050.0,0.40657138]
[1734365113316,0.25951603,106060.0,106050.0,0.40657138]
[1734365113530,0.25881811,106060.0,106050.0,0.40657138]
[1734365113948,0.46900392,106060.0,106050.0,0.40657138]
[1734365114857,0.3008858,106060.0,106050.0,0.40657138]
[1734365115698,0.32894785,106060.0,106050.0,0.40657138]
[1734365116146,0.29239924,106060.0,106050.0,0.40657138]
[1734365116767,0.29239924,106060.0,106050.0,0.38082591]
[1734365119744,0.33451207,106060.0,106050.0,0.38082591]
[1734365119951,0.29266393,106060.0,106050.0,0.38082591]
[1734365120159,0.46078205,106060.0,106050.0,0.38082591]
[1734365120364,0.48882869,106060.0,106050.0,0.38082591]
[1734365120586,0.48882792,106060.0,106050.0,0.38082591]
[1734365121444,0.69901373,106060.0,106050.0,0.38082591]
[1734365121652,0.46078205,106060.0,106050.0,0.38091221]
[1734365121885,0.48873441,106060.0,106050.0,0.38091221]
[1734365122086,0.29257184,106060.0,106050.0,0.38091221]
[1734365122945,0.46092134,106060.0,106050.0,0.38091221]
[1734365123160,0.29257184,106060.0,106050.0,0.38091221]
[1734365123366,0.43810893,106060.0,106050.0,0.38091221]
[1734365123580,0.67337107,106060.0,106050.0,0.38091221]
[1734365123795,0.31185772,106070.0,106060.0,0.1951]
[1734365123796,0.21641141,106070.0,106060.0,0.1951]
[1734365124000,0.84197219,106090.0,106060.0,0.5319291]
[1734365124205,0.41389128,106090.0,106080.0,0.35462802]
[1734365124425,0.50818198,106090.0,106080.0,0.35462802]
[1734365125245,0.44702766,106110.0,106080.0,0.4368291]
[1734365125471,0.61834218,106130.0,106100.0,0.35462802]
[1734365125715,0.00015751,106110.0,106100.0,0.15]
[1734365125941,0.0942907,106120.0,106110.0,0.15054357]
[1734365126169,0.57379676,106140.0,106130.0,0.15]
[1734365126368,0.57387246,106140.0,106130.0,0.30341631]
[1734365126514,0.0942907,106140.0,106130.0,0.30341631]
[1734365126872,0.0942907,106140.0,106130.0,0.45644656]
[1734365127171,0.11176532,106140.0,106130.0,0.45644656]
[1734365127307,0.0377737,106140.0,106130.0,0.45644656]
[1734365127518,9.57e-05,106140.0,106130.0,0.45644656]
[1734365127717,1.33988871,106160.0,106130.0,0.45644656]
[1734365127987,0.08432889,106150.0,106140.0,0.30572057]
[1734365128252,0.08432889,106150.0,106140.0,0.30319057]
[1734365128450,0.53506967,106160.0,106150.0,0.30303025]
[1734365128670,0.0011726,106170.0,106150.0,0.30303025]
[1734365128873,0.01141003,106170.0,106160.0,0.30303025]
[1734365129122,0.01141003,106170.0,106160.0,0.45875082]
[1734365129324,0.06980357,106190.0,106170.0,0.15]
[1734365129550,0.0942907,106180.0,106170.0,0.15]
[1734365129756,0.0942907,106180.0,106160.0,0.15489022]
[1734365129933,0.0942907,106180.0,106170.0,0.30303025]
[1734365130363,0.0842907,106180.0,106170.0,0.30405987]
[1734365133355,0.00016697,106190.0,106170.0,0.4560605]
[1734365133554,0.00016697,106190.0,106180.0,0.30488185]
[1734365133802,0.09445767,106190.0,106180.0,0.30303025]
[1734365134019,0.10960325,106190.0,106180.0,0.43874925]
[1734365134234,0.10960325,106190.0,106180.0,0.41415325]
[1734365134434,0.10960325,106190.0,106180.0,0.30303025]
[1734365134634,0.13260325,106190.0,106180.0,0.15]
[1734365134838,0.023,106180.0,106170.0,0.27889108]
[1734365135049,0.14376103,106180.0,106150.0,0.15303025]
[1734365135271,0.1172907,106170.0,106160.0,0.15303025]
[1734365135785,0.1172907,106170.0,106160.0,0.48920825]
[1734365135991,0.1172907,106170.0,106160.0,0.42259025]
[1734365136193,0.1172907,106170.0,106160.0,0.35610625]
[1734365136483,0.13444678,106170.0,106160.0,0.15303025]
[1734365136669,0.21734678,106170.0,106160.0,0.15303025]
[1734365136871,0.24514656,106170.0,106160.0,0.30303025]
[1734365137105,0.21734678,106170.0,106160.0,0.30303025]
[1734365137289,0.24514656,106170.0,106160.0,0.29181875]
[1734365138900,0.2729428,106170.0,106160.0,0.28294643]
[1734365139110,0.2729428,106170.0,106160.0,0.15]
[1734365139269,0.24514656,106170.0,106160.0,0.15]
[1734365140251,0.21734678,106170.0,106160.0,0.15]
[1734365140432,0.21734678,106170.0,106160.0,0.11924262]
[1734365140639,0.21734678,106170.0,106160.0,0.27227287]
[1734365140841,0.23970612,106170.0,106160.0,0.27227287]
[1734365141040,0.24515129,106170.0,106160.0,0.27227287]
[1734365141240,0.21734678,106170.0,106160.0,0.27227287]
[1734365141450,0.2451677,106170.0,106160.0,0.27227287]
[1734365141647,0.21734678,106170.0,106160.0,0.27227287]
[1734365143580,0.21734678,106170.0,106160.0,0.15303025]
[1734365143930,0.21734678,106170.0,106160.0,0.30303025]
[1734365144768,0.1771907,106170.0,106160.0,0.6432535]
[1734365145002,0.0942907,106170.0,106160.0,0.5781495]
[1734365145993,0.0942907,106170.0,106160.0,0.5783219]
[1734365146200,0.1172907,106170.0,106160.0,0.30320265]
[1734365147916,0.1985907,106170.0,106160.0,0.30303025]
[1734365148120,0.23931094,106170.0,106160.0,0.10203476]
[1734365148549,0.32272114,106170.0,106160.0,0.10203476]
[1734365148956,0.32272114,106170.0,106150.0,0.10203476]
[1734365148957,0.023,106160.0,106150.0,0.10203476]
[1734365149162,0.023,106160.0,106150.0,0.0870987]
[1734365149163,0.1623907,106160.0,106150.0,0.0870987]
[1734365149576,0.364906,106160.0,106150.0,0.0870987]
[1734365149785,0.54266081,106160.0,106110.0,0.10203476]
[1734365149990,0.54266081,106160.0,106120.0,0.17921]
[1734365149991,0.023,106130.0,106120.0,0.17921]
[1734365150197,0.1946907,106130.0,106110.0,0.10203476]
[1734365150415,0.16270402,106120.0,106110.0,0.10203476]
[1734365150622,0.1436011,106120.0,106110.0,0.48882792]
[1734365150828,0.1172907,106120.0,106110.0,1.17681892]
[1734365151046,0.1172907,106120.0,106110.0,0.84370492]
[1734365151250,0.1172907,106120.0,106110.0,0.92763652]
[1734365151457,0.0942907,106120.0,106110.0,0.92763652]
[1734365152065,0.0942907,106120.0,106110.0,0.723567]
[1734365152418,0.0942907,106120.0,106110.0,1.0297726]
[1734365152628,0.0942907,106120.0,106110.0,1.1797726]
[1734365154934,0.09139645,106120.0,106110.0,1.1797726]
[1734365155370,0.09139645,106120.0,106110.0,2.3882816]
[1734365155571,0.09139645,106120.0,106110.0,2.4779186]
[1734365155779,0.07254945,106120.0,106110.0,2.3571096]